Cogmind - Beta 16.1 @@@ ROGUE MODE // 2026.04.07 @ 00:26:13 Player: Maelyn Result: Destroyed by S-10 Pest with Light Assault Rifle Performance ------------- Evolutions (0) 0 Regions Visited (1) 200 Robots Destroyed (2) 10 Value Destroyed (8) 8 Prototype IDs (0) 0 Alien Tech Used (0) 0 Bonus (0) 0 TOTAL SCORE: 218 Bonus ------- None Cogmind --------- Core Integrity 0/250 Matter 265/300 Energy 100/100 System Corruption 0% Temperature Cool (9) Movement Core (150) Ox2 Location -10/Materials Parts ------- > --- POWER (1) -------- (None) > --- PROPULSION (2) --- (None) > --- UTILITY (2) ------ Small Storage Unit > --- WEAPON (2) ------- Assault Rifle > --- INVENTORY (8) ---- Aluminum Leg Wheel Small Matter Pod (0) Seismic Detector Peak State ------------ > --- POWER ------------ Light Ion Engine > --- PROPULSION ------- Aluminum Leg Aluminum Leg > --- UTILITY ---------- Small Storage Unit Improved Terrain Scanner > --- WEAPON ----------- EM Pulse Gun Assault Rifle > --- INVENTORY -------- Light Ion Engine Light Treads Light Treads Assault Rifle [Rating: 9] Favorites ----------- Power Light Ion Engine Engine Light Ion Engine Propulsion Aluminum Leg Treads Light Treads Leg Aluminum Leg Utility Small Storage Unit Device Improved Terrain Scanner Storage Small Storage Unit Weapon EM Pulse Gun Energy Gun EM Pulse Gun Ballistic Gun Assault Rifle Build | -11 -10 ------- Run | Yrd Mat Slots Evolved . | . . Power . | . . Propulsion . | . . Utility . | . . Weapon . | . . Parts Attached 11 | 7 4 Power 2 | 1 1 Engine 2 | 1 1 Core . | . . Reactor . | . . Propulsion 4 | 2 2 Treads 2 | . 2 Leg 2 | 2 . Wheel . | . . Hover . | . . Flight . | . . Utility 2 | 2 . Device 1 | 1 . Storage 1 | 1 . Processor . | . . Hackware . | . . Protection . | . . Artifact . | . . Weapon 3 | 2 1 Energy Gun 1 | 1 . Energy Cannon . | . . Ballistic Gun 2 | 1 1 Ballistic Cannon . | . . Launcher . | . . Special Weapon . | . . Impact Weapon . | . . Slashing Weapon . | . . Piercing Weapon . | . . Special Melee Weapon . | . . Unidentified Prototypes . | . . Parts Lost 8 | . 8 Power 2 | . 2 Propulsion 3 | . 3 Utility 1 | . 1 Weapon 2 | . 2 Highest Loss Streak 8 | . 8 To Critical Strikes . | . . Average Backups 3 | 1 6 Power . | . . Propulsion 1 | . 2 Utility . | . 1 Weapon . | . . Tool/Special . | . . Unused Backups 2 | . 2 Power . | . . Propulsion 1 | . 1 Utility 1 | . 1 Weapon . | . . Tool/Special . | . . Average Slot Usage (%) 83 | . 83 Engine 10 | . 10 Treads 5 | . 5 Leg 21 | . 21 Device 10 | . 10 Storage 14 | . 14 Energy Gun 10 | . 10 Ballistic Gun 10 | . 10 Peak Build Rating 9 | 9 9 Average Rating 4 | 2 7 On Entrance 4 | . 9 Avg Prop Armor Cover (%) . | . . Naked Turns . | . . Heaviest Build 13 | 13 13 Greatest Support 40 | 20 40 Greatest Overweight (x) . | . . Average Overweight (x) . | . . Largest Inventory Capacity 8 | 8 8 Average Capacity 6 | 5 8 Most Carried 7 | 7 7 Average Carried 3 | 1 6 Final Capacity 8 | 8 8 Final Carried 6 | 6 4 Class Distribution -------------------- 100% | Mutant Dominant Class ---------------- Mutant | -10/Materials Resources | -11 -10 ----------- Run | Yrd Mat Matter Collected 274 | 274 . Remotely . | . . Salvage Created 60 | 60 . Parts 5 | 5 . Haulers Intercepted . | . . Recyclers Shooed . | . . Parts Field Recycled . | . . Retrieved Matter . | . . Parts Self-Destructed . | . . Prevented . | . . Parts Restored . | . . Kills | -11 -10 ------- Run | Yrd Mat Combat Hostiles Destroyed . | . . Classes Destroyed 2 | 2 . Worker 1 | 1 . Tunneler 1 | 1 . Best Kill Streak 1 | 1 . Combat Bots Only . | . . Max Kills in Single Turn 1 | 1 . Gunslinging . | . . Exploded . | . . Melee . | . . Uniques/NPCs Destroyed . | . . Combat | -11 -10 -------- Run | Yrd Mat Hostile Shots Fired 122 | . 122 Missed 27 | . 27 Hits 95 | . 95 Projectile 95 | . 95 Critical Strikes 2 | . 2 Damage Taken 1115 | . 1115 Core 252 | . 252 Absorbed by Shields . | . . Core Remaining (%) 100 | 100 . Volleys Fired 15 | 10 5 Largest 2 | 2 1 Hottest 60 | 60 40 Shots Fired 24 | 19 5 Gun 24 | 19 5 Cannon . | . . Launcher . | . . Special . | . . Kinetic 13 | 9 4 Thermal . | . . Explosive . | . . Electromagnetic 11 | 10 1 Robot Hit Streak 4 | 2 4 Robot Miss Streak 4 | 4 4 Penetration Max . | . . Secondary Targets . | . . Shots Hit Robots 12 | 8 4 Core Hits 5 | 3 2 Critical Kills . | . . Critical Parts Destroyed . | . . Critical Strikes . | . . Melee Attacks . | . . Impact . | . . Slashing . | . . Piercing . | . . Sneak Attacks . | . . Combat Hostiles . | . . Follow-up Attacks . | . . Damage Inflicted 163 | 118 45 Guns 163 | 118 45 Cannons . | . . Explosions . | . . Melee . | . . Ramming . | . . Kinetic 97 | 52 45 Thermal . | . . Explosive . | . . Electromagnetic 66 | 66 . Impact . | . . Slashing . | . . Piercing . | . . Highest Corruption . | . . Average Corruption . | . . Corruption Purged . | . . Corruption Blocked . | . . Overload Shots . | . . Overflow Damage . | . . Projectiles . | . . Explosions . | . . Melee . | . . Knockbacks . | . . Impact . | . . Kinetic . | . . Secondary . | . . Self-Inflicted Damage . | . . Shots . | . . Rammed . | . . Targets Rammed . | . . Kicked . | . . Crushed . | . . Highest Temperature 12 | 1 12 Average Temperature 6 | 1 7 Received Heat Transfer 480 | . 480 Siege Activations . | . . Martial Activations . | . . Shielding Activations . | . . Robots Disrupted . | . . Combat Hostiles . | . . Robots Corrupted . | . . Combat Hostiles . | . . Parts Fried . | . . Impact Corruptions . | . . Robots Melted . | . . Combat Hostiles . | . . Parts Melted . | . . Heat Transferred . | . . Parts Sabotaged . | . . Parts Stolen . | . . Parts Stripped . | . . Power Chain Reactions . | . . Alert | -11 -10 ------- Run | Yrd Mat Maximum Alert Level . | . . Low Security (%) 100 | 100 100 Level 1 . | . . Level 2 . | . . Level 3 . | . . Level 4 . | . . Level 5 . | . . High Security . | . . Max Security . | . . Peak Influence 20 | 5 20 Initial . | . . Average . | . . Influence Increases 70 | 10 60 Destroy 0b10 Robot/NC 10 | 10 . Lose Combat Pursuer 60 | . 60 Influence Decreases 70 | 10 60 Time Decay 25 | 10 15 Lost Part 45 | . 45 Squads Dispatched . | . . Investigation . | . . Extermination . | . . Reinforcement . | . . Assault . | . . Garrison . | . . Intercept . | . . Searches Triggered . | . . Construction Impeded . | . . Haulers Reinforced . | . . Active Scanning Responses . | . . Cargo Convoy Interrupts . | . . Stealth | -11 -10 --------- Run | Yrd Mat Distress Signals 1 | . 1 Communications Jammed . | . . Distress Signals . | . . Times Spotted 13 | . 13 Peak Tracking Total 10 | . 10 Tactical Retreats 3 | . 3 Traps | -11 -10 ------- Run | Yrd Mat Traps Triggered . | . . Indirectly . | . . Trap Hack Attempts . | . . Triggered . | . . Disarmed . | . . Reprogrammed . | . . Reused . | . . Traps Extracted . | . . Installed . | . . Triggered . | . . Machines | -11 -10 ---------- Run | Yrd Mat Machines Disabled . | . . Max in Single Turn . | . . Machines Repaired . | . . Machines Dismantled . | . . Machines Sabotaged . | . . Overloaded Fab Kills . | . . Hacking | -11 -10 --------- Run | Yrd Mat Machines Accessed . | . . Terminals . | . . Fabricators . | . . Repair Stations . | . . Recycling Units . | . . Scanalyzers . | . . Garrison Access . | . . Total Hacks . | . . Successful . | . . Failed . | . . Catastrophic . | . . Database Lockouts . | . . Manual . | . . Terminals . | . . Fabricators . | . . Repair Stations . | . . Recycling Units . | . . Scanalyzers . | . . Garrison Access . | . . Terminal Hacks . | . . Fabricator Hacks . | . . Repair Station Hacks . | . . Recycling Unit Hacks . | . . Scanalyzer . | . . Garrison Access Hacks . | . . Unauthorized Hacks . | . . Terminals . | . . Fabricators . | . . Repair Stations . | . . Recycling Units . | . . Scanalyzers . | . . Garrison Access . | . . Data Cores Recovered . | . . Used . | . . Hacking Detections . | . . Full Trace Events . | . . Feedback Events . | . . Feedback Blocked . | . . Robot Schematics Acquired . | . . Robots Built . | . . Authchips . | . . Time . | . . Total Robot Build Rating . | . . Part Schematics Acquired . | . . Parts Built . | . . Authchips . | . . Time . | . . Total Part Build Rating . | . . Part Studies Acquired . | . . Parts Repaired . | . . Time . | . . Parts Recycled . | . . Recycled Matter . | . . Retrieved Matter . | . . Retrieved Components . | . . Parts Scanalyzed . | . . Part Schematics Acquired . | . . Parts Damaged . | . . Bothacking | -11 -10 ------------ Run | Yrd Mat Used RIF Installer . | . . Robots Hacked . | . . Non-combat . | . . Combat . | . . Robot Hacks Applied . | . . Relay Couplers Released . | . . Fabnet Peak Effective % . | . . Robots Rewired . | . . Allies Hacked . | . . Hacks Repelled . | . . Allies | -11 -10 -------- Run | Yrd Mat Total Allies . | . . Largest Group . | . . Highest-Rated Group . | . . Highest-Rated Ally . | . . Total Orders . | . . Ally Attacks . | . . Total Damage . | . . Kills . | . . Allies Corrupted . | . . Allies Melted . | . . Intel | -11 -10 ------- Run | Yrd Mat Active Infowar (turns) 242 | 77 165 Terrain 242 | 77 165 Robot Analysis Total . | . . Derelict Logs Recovered . | . . Drone Launches . | . . Drone Recoveries . | . . Exploration | -11 -10 ------------- Run | Yrd Mat Turns Passed 540 | 329 211 Spaces Moved 102 | 62 40 Core 10 | 10 . Treads 22 | . 22 Legs 70 | 52 18 Wheels . | . . Hover . | . . Flight . | . . Fastest Speed 50 | 50 120 Average Speed 121 | 108 142 Slowest Speed 160 | 120 160 Overloaded Moves . | . . Propulsion Burnouts . | . . Robots Hopped . | . . Potential Cave-ins . | . . Cave-ins Triggered . | . . Exploration Rate (%) 7 | 6 8 Regions Visited 1 Branch Regions . Pre-discovered Areas . | . . Known Exits Taken . | . . Unknown Exits Taken 1 | 1 . Scrap Searched . | . . Spaces Dug . | . . Terrain Destroyed . | . . Melee . | . . Projectile . | . . AOE . | . . Terrain Rammed . | . . Walls Destroyed . | . . Machines Disabled . | . . Actions | -11 -10 --------- Run | Yrd Mat Total 493 | 304 189 Wait 352 | 213 139 Move 101 | 61 40 Hop . | . . Pick Up 14 | 13 1 Fast Attach . | . . Attach 10 | 7 3 Detach . | . . Swap 1 | . 1 Drop . | . . Fire 15 | 10 5 Melee . | . . Ram . | . . Kick . | . . Crush . | . . Escape Stasis . | . . Rewire . | . . Trap . | . . Miscellaneous . | . . Route ------- -11/Scrapyard -10/Materials History --------- Turn | Location | Event 244 | -11/Scrapyard | Discovered new exit (range 15) 330 | -11/Scrapyard | Entered Materials 331 | -10/Materials | Build established: Mutant 535 | -10/Materials | Core integrity fell below 50% 539 | -10/Materials | Core integrity fell below 20% 541 | -10/Materials | Destroyed by S-10 Pest with Light Assault Rifle Last Messages --------------- 00509_ U-05 Engineer lays Concrete. 00512_ T-07 Excavator is excavating. 00512_ U-05 Engineer lays Concrete. 00516_ T-07 Excavator is excavating. 00518_ Lgt. Ion Engine destroyed. 00519_ U-05 Engineer lays Concrete. 00522_ T-07 Excavator is excavating. 00524_ U-05 Engineer lays Concrete. 00525_ U-05 Engineer builds a Wall. 00526_ T-07 Excavator is excavating. 00526_ U-05 Engineer lays Concrete. 00529_ U-05 Engineer builds a Wall. 00530_ T-07 Excavator is excavating. 00532_ U-05 Engineer lays Concrete. 00532_ Lgt. Treads destroyed. 00533_ U-05 Engineer builds a Wall. 00533_ Lgt. Treads destroyed. 00533_ U-05 Engineer builds a Wall. 00534_ T-07 Excavator destroyed. 00535_ Critical hit (Burn: +37). Map ----- +----------------------------------------------------+ | ????????????????????????????????????????????? | | ????????????????????????????????????????????? | | ????????????????????????????????????????????? | | ????????????????????????????????????????????? | | ????????????????????????????????????????????? | | ?????????????????????????????????#??????????? | | ??????????????????????????????????? ????????? | | ???????????????????????????????#??? ???? ???? | | ??????????????????????????????###??????? ?#?? | | ????????????????????????? ???? #???????????# | | ???????????????????????? ???? +???????????? | | ?????????????????????????????? #???? ??????? | | ??????????????????????????????# #????? ?????? | | ?????????????????????????? ???# #???????????? | | ??????????????????????? ????### #?????????#?? | | ???????????????????????? ? #??# ###########?? | | ???????????????????????? ???### # T #?? | | ????????????????????????????# # """ #?? | | ????????????????????????????# # """ #?? | | ????????????????????????????# # " #?? | | ??????????????############### + #?? | | ??????????????# # #?? | | ??????????????# # ##? | | ??????????????# u g # ##? | | ??????????????# #######g#############+####? | | ??????????????????## @ = #? ?????? #??? | | ??????????????????# s s *%!#????? ?"? #??? | | ??????????????????# sg !u#????????? #??? | | ??????????????????# ###??? ??""? ##?? | | ??????????????? T# ###??#?"? ?? ?????? | | ??????????????# ?########???????Y?????????? | | ??????????????# ????????#???###???? ? ?????? | | ??????????????# ????????????????? ??????????? | | ??????????????#???????????? ?? ?????????????? | | ????????????????????????????????????????????? | | ?????????????????????????????????????? ?????? | | ????????????????????????????????????????????? | | ????????????????????????????????????????????? | | ????????????????????????????????????????????? | | ????????????????????????????????????????????? | | ????????????????????????????????????????????? | | ????????????????????????????????????????????? | | ????????????????????????????????????????????? | | ????????????????????????????????????????????? | | ????????????????????????????????????????????? | | ????????????????????????????????????????????? | | ????????????????????????????????????????????? | | ????????????????????????????????????????????? | | ????????????????????????????????????????????? | | ????????????????????????????????????????????? | +----------------------------------------------------+ Best States ------------- Heat Dissipation 25 Energy Generation 10 Energy Capacity 125 Matter Stores 287 Matter Capacity 300 Sight Range 16 Terrain Scan Range 16 Terrain Scan Density 10 Evasion (%) 55 Recoil Reduction 2 Item Schematics ----------------- None Robot Schematics ------------------ None Fabricated ------------ Nothing Repaired ---------- Nothing Studied --------- None Alien Tech Used ----------------- None Achievements -------------- None Challenges ------------ None Game ------ Seed UtilityCloakFist Manual? 0 Play Time 00:05:29 Cumulative 13.9 hours Start 2026.04.07 @ 00:20:12 End 2026.04.07 @ 00:26:13 Sessions 1 Manual Loads 0 Difficulty Rogue Special Mode None Game No. 38 Rogue 38 Adventurer 0 Explorer 0 Win Type - Total 0 Types 0/0/0/0/0/0/0/0/0/0 Lore% 7 Gallery% 16 Achievement% 9 Wizard Run 0 Options --------- Layout 2 ASCII 0 Keyboard 0 Movement Mouse Keybinds 0 Fullscreen 1 Font 16/Dina Map View 50x49 Zoom Use 0% Tactical HUD 1 Map Filters NONE Filters NONE Steam SD RUN: e893b1b8-0cbd-4156-8028-6b6bfb20ba7f